bitfinex-derivatives/quotes_SOLF0:USTF0_20220110
["timestamp","ask_amount","ask_price","bid_price","bid_amount"]
[1641785904400,2.56901309,140.53,140.51,2.62990122]
[1641785905404,2.56901309,140.53,140.5,2.62990122]
[1641785911811,2.56901309,140.53,140.5,30.29469122]
[1641785912410,2.56901309,140.53,140.51,2.62990122]
[1641785912912,2.56901309,140.53,140.52,2.62990122]
[1641785913714,6.60179465,140.53,140.52,2.62990122]
[1641785925328,14.57379465,140.53,140.52,5.08832634]
[1641785925929,14.57379465,140.53,140.52,2.62990122]
[1641785927931,6.82906612,140.58,140.52,15.27990122]
[1641785928130,6.82854291,140.59,140.55,4.0]
[1641785928331,40.28558613,140.6,140.56,4.0]
[1641785928531,40.28558613,140.6,140.57,27.66479]
[1641785928931,8.19240999,140.62,140.57,27.66479]
[1641785929133,8.19240999,140.62,140.58,3.04875491]
[1641785929331,8.19240999,140.62,140.58,9.62975491]
[1641785929736,4.03074376,140.61,140.59,3.04875491]
[1641785930135,4.03074376,140.61,140.6,3.04875491]
[1641785934439,4.03074376,140.61,140.56,83.47439]
[1641785934440,5.69071347,140.58,140.51,5.778]
[1641785934642,14.83471347,140.58,140.52,15.09402854]
[1641785934840,14.83471347,140.58,140.54,27.66479]
[1641785935041,9.144,140.58,140.54,27.66479]
[1641785935643,4.03165668,140.57,140.55,2.26948506]
[1641785937545,4.03165668,140.57,140.55,6.26948506]
[1641785937745,7.1131344,140.63,140.56,4.0]
[1641785937945,7.1131344,140.63,140.57,4.0]
[1641785938345,7.1131344,140.63,140.56,4.0]
[1641785938546,7.1131344,140.63,140.55,61.7691]
[1641785938746,4.03091894,140.62,140.57,3.34385476]
[1641785938945,4.03091894,140.62,140.57,31.00864476]
[1641785939248,4.03091894,140.62,140.58,3.34385476]
[1641785941047,9.7203951,140.62,140.58,3.34385476]
[1641785941449,4.03091894,140.61,140.58,3.34385476]
[1641785946652,11.70891894,140.61,140.58,3.34385476]
[1641785947453,4.03091894,140.6,140.58,3.34385476]
[1641785948053,4.03091894,140.6,140.56,3.34385476]
[1641785948354,4.03091894,140.6,140.59,3.34385476]
[1641785948753,4.03091894,140.62,140.57,7.34385476]
[1641785948956,4.03091894,140.62,140.57,35.00864476]
[1641785949157,4.03091894,140.62,140.58,3.34385476]
[1641785950357,4.03091894,140.63,140.58,3.34385476]
[1641785951458,4.03091894,140.63,140.58,7.34385476]
[1641785951657,4.03091894,140.63,140.59,4.0]
[1641785952057,4.03091894,140.63,140.6,4.0]
[1641785952258,4.03091894,140.63,140.6,7.34385476]
[1641785952558,59.2578,140.65,140.61,4.0]
[1641785952760,5.68731342,140.67,140.6,13.313]
[1641785952958,5.68731342,140.67,140.62,27.66479]
[1641785953659,3.50747534,140.66,140.63,4.02963607]
[1641785954461,3.50747534,140.67,140.63,8.02963607]
[1641785954861,3.50747534,140.67,140.64,4.02963607]
[1641785955460,3.50747534,140.67,140.63,31.69442607]
[1641785955860,3.50747534,140.67,140.64,4.02963607]
[1641785957563,7.50747534,140.67,140.64,4.02963607]
[1641785957763,3.50747534,140.67,140.64,4.02963607]
[1641785957964,9.194775,140.67,140.64,4.02963607]
[1641785958362,9.194775,140.67,140.62,4.02963607]
[1641785958563,15.907775,140.67,140.62,4.02963607]
[1641785958762,3.50747534,140.66,140.62,4.02963607]
[1641785964674,7.50747534,140.66,140.62,4.02963607]
[1641785964871,4.0,140.65,140.62,4.02963607]
[1641785965071,4.0,140.64,140.59,55.2969]
[1641785965271,5.68876602,140.63,140.59,55.2969]
[1641785965471,14.10876602,140.63,140.59,55.2969]
[1641785965672,14.10876602,140.63,140.57,9.87173828]
[1641785965872,41.77355602,140.63,140.57,9.87173828]
[1641785966271,4.03103705,140.62,140.58,3.34445891]
[1641785972175,4.03103705,140.62,140.58,7.34445891]
[1641785972575,31.69582705,140.63,140.59,3.34445891]
[1641785973074,4.03103705,140.62,140.59,3.34445891]
[1641785974278,4.03103705,140.62,140.59,7.34445891]
[1641785974479,4.03103705,140.63,140.59,35.00924891]
[1641785974880,4.03103705,140.63,140.6,3.34445891]
[1641785975179,4.03103705,140.63,140.6,7.34445891]
[1641785975383,4.03103705,140.63,140.6,3.34445891]
[1641785975982,4.03103705,140.63,140.57,11.64773828]
[1641785976180,4.03103705,140.63,140.57,9.87173828]
[1641785976380,2.56686715,140.62,140.58,3.34463047]
[1641785976780,4.03103705,140.61,140.58,3.34463047]
[1641785976980,10.89703705,140.61,140.58,3.34463047]
[1641785977582,10.89703705,140.61,140.58,7.34463047]
[1641785977783,4.03103705,140.6,140.58,7.34463047]
[1641785977984,4.03103705,140.6,140.58,3.34463047]
[1641785978183,4.03103705,140.6,140.59,3.34463047]
[1641785978586,4.03103705,140.61,140.59,3.34463047]
[1641785980086,4.03103705,140.61,140.59,16.54263047]
[1641785980286,2.56686715,140.62,140.59,16.54263047]
[1641785980484,2.56686715,140.62,140.61,55.32958]
[1641785981486,2.56686715,140.62,140.61,63.35962255]
[1641785981688,15.06146291,140.66,140.61,63.35962255]
[1641785982087,3.50750504,140.65,140.62,4.03004255]
[1641785996402,3.50750504,140.65,140.62,8.03004255]
[1641785996603,3.50750504,140.65,140.62,31.66479]
[1641785997001,3.50750504,140.66,140.63,4.03004255]
[1641785998203,3.50750504,140.66,140.63,8.03004255]
[1641785998404,3.50750504,140.66,140.63,4.03004255]
[1641785998606,3.50750504,140.66,140.65,27.66479]
[1641785999205,3.50750504,140.66,140.65,31.69483255]
[1641786003613,3.50750504,140.66,140.65,4.03004255]
[1641786004015,3.50750504,140.66,140.64,4.03004255]
[1641786005917,11.08250504,140.66,140.64,4.03004255]
[1641786006520,3.50750504,140.65,140.64,4.03004255]
[1641786006918,7.50750504,140.65,140.59,16.83795462]
[1641786007118,4.0,140.64,140.59,15.06195462]
[1641786007318,5.68864313,140.64,140.59,15.06195462]
[1641786007920,5.68864313,140.64,140.57,64.84745318]
[1641786008120,3.91113355,140.63,140.6,4.03062855]
[1641786008420,3.91113355,140.63,140.58,4.03062855]
[1641786008621,9.63813355,140.63,140.58,4.03062855]
[1641786009023,3.91113355,140.62,140.58,4.03062855]
[1641786013424,3.91113355,140.62,140.58,31.69541855]
[1641786014131,3.91113355,140.62,140.59,4.03062855]
[1641786014524,3.91113355,140.62,140.6,4.03062855]
[1641786015224,3.91113355,140.62,140.61,4.03062855]
[1641786017833,3.91113355,140.63,140.61,4.03062855]
[1641786018135,3.91113355,140.63,140.62,4.03062855]
[1641786021235,3.91113355,140.63,140.57,79.9094078]
[1641786021436,13.15313355,140.63,140.57,64.84745318]
[1641786021637,13.15313355,140.63,140.58,3.34452309]
[1641786022038,3.91113355,140.62,140.58,3.34452309]
[1641786022241,7.91113355,140.62,140.58,3.34452309]
[1641786022439,7.91113355,140.62,140.59,2.4558994]
[1641786022641,9.68971491,140.61,140.59,2.4558994]
[1641786022839,9.68971491,140.61,140.58,3.34452309]
[1641786023041,5.69009582,140.6,140.57,9.89185318]
[1641786023241,20.74822937,140.6,140.57,9.89185318]
[1641786023642,16.74822937,140.6,140.57,9.89185318]
[1641786023843,12.83709582,140.6,140.57,9.89185318]
[1641786024345,4.0311226,140.59,140.57,9.89185318]
[1641786025646,31.6959126,140.59,140.57,9.89185318]
[1641786025847,4.0311226,140.59,140.57,9.89185318]
[1641786026045,4.0311226,140.58,140.57,9.89185318]
[1641786026446,4.0311226,140.61,140.57,9.89185318]
[1641786027146,9.72069707,140.61,140.57,9.89185318]
[1641786027747,4.0311226,140.6,140.57,21.32285318]
[1641786027947,1e-08,140.6,140.57,17.32285318]
[1641786028146,1e-08,140.63,140.59,4.0]
[1641786028346,1e-08,140.63,140.58,54.8511]
[1641786028547,66.38753099,140.65,140.58,54.8511]
[1641786029549,4.03009982,140.64,140.58,54.8511]
[1641786029751,5.6888735,140.63,140.58,82.51589]
[1641786030452,4.03009982,140.62,140.58,82.51589]
[1641786032254,4.03009982,140.64,140.58,82.51589]
[1641786033054,5.68868705,140.63,140.58,82.51589]
[1641786033756,4.03009982,140.62,140.58,82.51589]
[1641786034156,4.03009982,140.62,140.58,54.8511]
[1641786034358,4.03009982,140.62,140.57,9.89185318]
[1641786034558,13.71952715,140.62,140.57,9.89185318]
[1641786034963,4.03009982,140.61,140.57,9.89185318]
[1641786035157,11.11509982,140.61,140.57,9.89185318]
[1641786035658,38.77988982,140.61,140.57,9.89185318]
[1641786035858,4.03009982,140.6,140.57,9.89185318]
[1641786038561,4.03009982,140.6,140.58,3.55049944]
[1641786041565,4.03009982,140.61,140.58,3.55049944]
[1641786041765,31.69488982,140.61,140.58,3.55049944]
[1641786042166,4.03009982,140.6,140.58,3.55049944]
[1641786044172,5.69044733,140.59,140.58,3.55049944]
[1641786044772,9.72054715,140.59,140.58,3.55049944]
[1641786050983,9.72054715,140.59,140.58,12.18749944]
[1641786052685,15.41123374,140.59,140.58,12.18749944]
[1641786053985,9.72054715,140.59,140.58,6.49646788]
[1641786056291,9.72054715,140.59,140.57,9.89185318]
[1641786056693,4.03009982,140.58,140.57,9.89185318]
[1641786057193,4.03009982,140.58,140.57,13.44263888]
[1641786061096,14.74909982,140.58,140.57,0.61296972]
[1641786061299,14.74909982,140.58,140.54,15.07977361]
[1641786061499,4.0,140.55,140.54,15.07977361]
[1641786061697,13.057,140.55,140.54,15.07977361]
[1641786062697,17.0890868,140.55,140.54,16.84973791]
[1641786062897,44.7538768,140.55,140.54,1.7699643]
[1641786063098,40.7538768,140.55,140.54,1.7699643]
[1641786063300,13.0890868,140.55,140.54,1.7699643]
[1641786063501,13.0890868,140.55,140.51,1.7699643]
[1641786064102,4.0320868,140.54,140.51,1.7699643]
[1641786064302,56.2008,140.58,140.52,2.45734029]
[1641786064903,83.86559,140.58,140.52,2.45734029]
[1641786065103,87.86559,140.58,140.52,2.45734029]
[1641786065703,6.60269521,140.57,140.53,2.51564077]
[1641786066107,4.03209652,140.56,140.53,2.51564077]
[1641786067804,4.03209652,140.57,140.53,2.51564077]
[1641786070607,4.03209652,140.57,140.54,2.45476894]
[1641786070908,4.03209652,140.57,140.54,11.11776894]
[1641786071307,27.66479,140.58,140.54,11.11776894]
[1641786071510,57.5565,140.61,140.55,2.51564077]
[1641786072009,57.5565,140.61,140.55,4.97040971]
[1641786072711,4.0309707,140.6,140.56,4.97040971]
[1641786073211,4.0309707,140.6,140.57,2.51564077]
[1641786073410,4.0309707,140.6,140.57,10.32764077]
[1641786074113,4.0309707,140.6,140.58,2.51564077]
[1641786079220,55.32958,140.63,140.58,2.51564077]
[1641786079221,4.0309707,140.62,140.58,2.51564077]
[1641786080421,4.0309707,140.62,140.56,2.51564077]
[1641786081322,4.0309707,140.62,140.57,2.45547527]
[1641786081821,4.0309707,140.62,140.58,2.51564077]
[1641786083123,8.0309707,140.62,140.58,2.51564077]
[1641786083422,13.72040011,140.62,140.58,2.51564077]
[1641786083622,4.0309707,140.61,140.58,2.51564077]
[1641786084324,8.0309707,140.61,140.58,2.51564077]
[1641786084923,8.0309707,140.6,140.58,2.51564077]
[1641786085324,4.0309707,140.59,140.57,2.45547527]
[1641786085723,4.0309707,140.59,140.58,3.84000204]
[1641786086124,4.0309707,140.59,140.57,2.45547527]
[1641786087727,4.0309707,140.59,140.58,3.84000131]
[1641786089028,4.0309707,140.59,140.58,13.22500131]
[1641786090333,4.0309707,140.59,140.58,9.385]
[1641786092036,31.6957607,140.59,140.58,9.385]
[1641786093937,31.6957607,140.59,140.58,13.22571775]
[1641786097640,4.0309707,140.59,140.58,13.22571775]
[1641786098241,31.6957607,140.59,140.58,13.22571775]
[1641786099944,37.3861556,140.59,140.58,13.22571775]
[1641786102147,9.7213656,140.59,140.58,13.22571775]
[1641786102845,37.3861556,140.59,140.58,13.22571775]
[1641786106149,31.6957607,140.59,140.58,7.53453294]
[1641786110754,34.26828647,140.59,140.58,7.53453294]
[1641786115764,6.60349647,140.59,140.58,7.53453294]
[1641786116864,4.0309707,140.59,140.58,7.53453294]
[1641786118167,6.6056009,140.59,140.58,7.53453294]
[1641786121074,4.0309707,140.59,140.58,7.53453294]
[1641786121675,6.60599134,140.59,140.58,7.53453294]
[1641786134188,10.60599134,140.59,140.58,7.53453294]
[1641786134387,17.43482756,140.59,140.58,7.53453294]
[1641786136794,72.76440756,140.59,140.58,7.53453294]
[1641786140097,13.43482756,140.59,140.58,7.53453294]
[1641786141201,41.09961756,140.59,140.58,7.53453294]
[1641786145305,13.43482756,140.59,140.58,7.53453294]
[1641786146107,41.09961756,140.59,140.58,7.53453294]
[1641786148611,34.27078134,140.59,140.58,7.53453294]
[1641786150612,44.92078134,140.59,140.58,7.53453294]
[1641786150812,44.92078134,140.59,140.57,2.45547527]
[1641786151212,40.92078134,140.59,140.57,2.45547527]
[1641786151412,44.92078134,140.59,140.57,2.45547527]
[1641786151618,6.57502064,140.58,140.54,9.91952381]
[1641786151812,4.0,140.56,140.54,9.91952381]
[1641786152012,10.16,140.56,140.55,2.68866905]
[1641786152311,47.54886364,140.56,140.54,9.91952381]
[1641786152912,4.03232264,140.55,140.54,9.91952381]
[1641786153314,4.03232264,140.55,140.54,12.60831947]
[1641786158117,31.69711264,140.55,140.54,12.60831947]
[1641786158518,4.03232264,140.55,140.54,20.01631947]
[1641786159321,4.03232264,140.58,140.54,20.01631947]
[1641786159723,4.03232264,140.58,140.55,2.68879566]
[1641786160422,27.66479,140.56,140.55,2.68879566]
[1641786161223,31.69711264,140.56,140.55,2.68879566]
[1641786165227,37.38872629,140.56,140.55,2.68879566]
[1641786165625,37.38872629,140.56,140.54,9.91952381]
[1641786166127,4.03232264,140.55,140.54,9.91952381]
[1641786166729,4.03232264,140.55,140.54,12.60856999]
[1641786169234,31.69711264,140.55,140.54,12.60856999]
[1641786170336,4.03232264,140.55,140.54,12.60856999]
[1641786171636,31.69711264,140.55,140.54,12.60856999]
[1641786173238,35.69711264,140.55,140.54,12.60856999]
[1641786173441,31.69711264,140.55,140.54,12.60856999]
[1641786174039,31.69711264,140.55,140.54,6.91613648]
[1641786177942,38.12911264,140.55,140.54,6.91613648]
[1641786178141,38.12911264,140.55,140.5,40.19617233]
[1641786178346,42.12911264,140.55,140.5,40.19617233]
[1641786178744,38.09679,140.55,140.5,40.19617233]
[1641786179543,5.69344165,140.52,140.5,40.19617233]
[1641786179744,5.69344165,140.52,140.51,2.09341735]
[1641786179943,3.60041673,140.51,140.5,40.19617233]
[1641786180144,7.60041673,140.51,140.47,15.08605413]
[1641786180344,4.0,140.51,140.47,15.08605413]
[1641786180546,4.0,140.5,140.47,15.08605413]
[1641786180845,4.0,140.48,140.46,40.21498897]
[1641786181045,4.0,140.47,140.41,100.72819206]
[1641786181344,8.03524297,140.46,140.42,1.73522033]
[1641786181547,15.15673563,140.46,140.42,1.73522033]
[1641786181745,27.66479,140.43,140.42,1.73522033]
[1641786181947,33.63779,140.43,140.42,1.73522033]
[1641786182145,37.67303297,140.43,140.42,1.73522033]
[1641786182346,41.67303297,140.43,140.42,1.73522033]
[1641786182547,41.67303297,140.43,140.41,100.72819206]
[1641786182747,4.0,140.42,140.41,100.72819206]
[1641786182949,4.03524297,140.42,140.41,100.72819206]
[1641786183348,4.03524297,140.42,140.41,102.46434362]
[1641786183950,8.03524297,140.42,140.41,102.46434362]
[1641786185252,8.03524297,140.42,140.41,91.83674362]
[1641786185453,8.03524297,140.42,140.41,68.20940691]
[1641786185653,8.03524297,140.42,140.41,64.33140691]
[1641786187855,8.03524297,140.42,140.41,60.47140691]
[1641786190774,8.03524297,140.42,140.41,60.47140691]
[1641786190973,4.03524297,140.42,140.41,60.47140691]
[1641786192073,4.03524297,140.42,140.41,62.12800274]
[1641786195779,4.03524297,140.42,140.41,60.47140691]
[1641786199484,6.83554478,140.45,140.41,60.47140691]
[1641786199685,4.0,140.48,140.41,60.47140691]
[1641786199986,4.0,140.48,140.41,63.90780395]
[1641786200188,27.66479,140.46,140.41,62.25140691]
[1641786200385,27.66479,140.46,140.41,60.47140691]
[1641786200585,27.66479,140.46,140.42,2.46319765]
[1641786200789,4.03571909,140.45,140.42,2.46319765]
[1641786204192,8.03571909,140.46,140.42,2.46319765]
[1641786204393,4.03571909,140.46,140.42,2.46319765]
[1641786204592,4.03571909,140.45,140.42,2.46319765]
[1641786204793,11.25671909,140.45,140.42,2.46319765]
[1641786204994,42.92150909,140.45,140.42,2.46319765]
[1641786205494,4.03571909,140.44,140.42,2.46319765]
[1641786205892,9.73234325,140.44,140.42,2.46319765]
[1641786206297,4.03571909,140.43,140.42,2.46319765]
[1641786215102,1.66341909,140.43,140.42,2.46319765]
[1641786215703,6.83434033,140.47,140.42,2.46319765]
[1641786215903,6.83434033,140.47,140.42,9.61119765]
[1641786216504,4.03523045,140.46,140.43,2.46319765]
[1641786218709,5.69632893,140.45,140.43,2.46319765]
[1641786218909,5.69632893,140.45,140.41,116.14700691]
[1641786219310,33.36111893,140.45,140.41,116.14700691]
[1641786219612,4.03523045,140.44,140.42,3.17970505]
[1641786222710,8.03523045,140.44,140.42,3.17970505]
[1641786223111,5.69696595,140.43,140.42,3.17970505]
[1641786223310,18.27796595,140.43,140.41,116.14700691]
[1641786223511,22.3131964,140.43,140.41,60.47140691]
[1641786223710,16.61623045,140.43,140.41,54.77363214]
[1641786223913,8.03523045,140.42,140.41,54.77363214]
[1641786224111,4.03523045,140.42,140.41,54.77363214]
[1641786224313,4.03523045,140.42,140.41,57.9540127]
[1641786224314,8.03523045,140.42,140.41,57.9540127]
[1641786224513,4.03523045,140.42,140.41,57.9540127]
[1641786224712,8.03523045,140.42,140.41,57.9540127]
[1641786226712,8.03523045,140.42,140.41,47.93643587]
[1641786227514,35.70002045,140.42,140.41,47.93643587]
[1641786229418,35.70002045,140.42,140.41,43.93643587]
[1641786230419,35.70002045,140.42,140.41,39.93643587]
[1641786231418,8.03523045,140.42,140.41,39.93643587]
[1641786232818,63.36481045,140.42,140.41,39.93643587]
[1641786233019,63.36481045,140.42,140.41,39.21693587]
[1641786234819,8.03523045,140.42,140.41,39.21693587]
[1641786235020,8.03523045,140.42,140.41,48.29493587]
[1641786235422,63.36481045,140.42,140.41,48.29493587]
[1641786237721,72.61764224,140.42,140.41,48.29493587]
[1641786238526,72.61764224,140.42,140.41,47.77523587]
[1641786238926,68.61764224,140.42,140.41,47.77523587]
[1641786239125,4.03523045,140.42,140.41,47.77523587]
[1641786239326,4.03523045,140.42,140.41,50.95554326]
[1641786239725,31.70002045,140.43,140.41,50.95554326]
[1641786240125,4.03523045,140.42,140.41,47.77523587]
[1641786240726,4.03523045,140.42,140.41,50.95544434]
[1641786245530,4.03523045,140.43,140.41,50.95544434]
[1641786245930,4.03523045,140.43,140.41,47.77523587]
[1641786249536,9.73209777,140.43,140.41,47.77523587]
[1641786250136,4.03523045,140.42,140.41,47.77523587]
[1641786250436,4.03523045,140.42,140.41,50.95546771]
[1641786256843,9.73277806,140.42,140.41,50.95546771]
[1641786266362,9.73277806,140.42,140.41,53.40570815]
[1641786267563,9.73277806,140.42,140.41,14.70847228]
[1641786285184,9.73277806,140.42,140.41,5.63047228]
[1641786286587,0.0674033,140.41,140.38,15.10236461]
[1641786286986,9.23845205,140.42,140.37,15.10236461]
[1641786287689,6.65,140.42,140.36,98.65885461]
[1641786287888,4.03667163,140.41,140.38,2.33490129]
[1641786288288,4.03667163,140.42,140.37,2.33490129]
[1641786291594,4.03667163,140.42,140.38,1.78]
[1641786292094,4.03667163,140.42,140.39,4.0]
[1641786292393,4.03667163,140.42,140.39,2.33490129]
[1641786294194,4.03667163,140.42,140.38,2.33490129]
[1641786294394,4.03667163,140.42,140.37,2.33490129]
[1641786295197,4.03667163,140.42,140.37,29.99969129]
[1641786295796,4.03667163,140.42,140.38,2.33490129]
[1641786295998,4.03667163,140.42,140.38,11.55290129]
[1641786296199,4.03667163,140.42,140.38,15.55290129]
[1641786296399,4.03667163,140.42,140.38,11.55290129]
[1641786296799,4.03667163,140.42,140.39,2.33490129]
[1641786299599,4.03667163,140.42,140.39,6.33490129]
[1641786300000,4.03667163,140.42,140.39,8.11490129]
[1641786300200,4.03667163,140.44,140.4,2.33490129]
[1641786301001,9.73336276,140.44,140.4,2.33490129]
[1641786301204,9.73336276,140.44,140.39,2.33490129]
[1641786301602,4.03667163,140.43,140.39,2.33490129]
[1641786301803,4.03667163,140.43,140.39,6.33490129]
[1641786302005,4.03667163,140.43,140.4,4.0]
[1641786302204,4.03667163,140.43,140.41,4.0]
[1641786302406,15.08604158,140.46,140.42,4.0]
[1641786303108,40.26380905,140.49,140.42,4.0]
[1641786303306,21.91906996,140.5,140.43,4.0]
[1641786303507,21.91906996,140.5,140.44,4.0]
[1641786304107,4.03437267,140.47,140.45,3.43513]
[1641786306110,4.03437267,140.47,140.45,7.43513]
[1641786306310,54.5282,140.52,140.45,7.43513]
[1641786306510,15.08604158,140.53,140.45,3.43513]
[1641786306713,4.03380107,140.51,140.49,4.0]
[1641786306915,1.07e-06,140.51,140.5,4.0]
[1641786307111,1.07e-06,140.51,140.5,5.778]
[1641786307312,1.07e-06,140.52,140.5,36.87792]
[1641786307511,1.07e-06,140.52,140.51,4.0]
[1641786307712,15.08604158,140.55,140.51,4.0]
[1641786308011,4.03297751,140.54,140.52,3.43357957]
[1641786308213,4.03297751,140.54,140.52,11.39057957]
[1641786308611,4.03297751,140.54,140.53,3.43357957]
[1641786309013,4.03297751,140.57,140.53,3.43357957]
[1641786309413,4.03297751,140.57,140.52,7.43357957]
[1641786309614,4.03297751,140.57,140.53,4.0]
[1641786309813,4.03297751,140.57,140.53,7.43357957]
[1641786310213,4.03297751,140.57,140.54,3.43357957]
[1641786311615,4.03297751,140.58,140.54,3.43357957]
[1641786312016,4.0,140.57,140.54,3.43357957]
[1641786312215,5.69226267,140.55,140.52,3.43357957]
[1641786312815,4.03297751,140.54,140.49,3.43357957]
[1641786313014,4.03297751,140.54,140.49,7.43357957]
[1641786313215,5.69226267,140.55,140.49,7.43357957]
[1641786313216,4.03297751,140.53,140.49,3.43357957]
[1641786313618,4.03297751,140.52,140.49,3.43357957]
[1641786313917,4.03297751,140.51,140.49,3.43357957]
[1641786314118,4.03297751,140.51,140.49,7.43357957]
[1641786314518,5.69226267,140.55,140.5,4.0]
[1641786314717,5.69226267,140.55,140.49,9.21157957]
[1641786314918,3.82566665,140.54,140.51,3.43357957]
[1641786315319,3.82566665,140.54,140.5,3.43357957]
[1641786315717,3.82566665,140.54,140.49,7.43357957]
[1641786316220,3.82566665,140.54,140.5,3.43357957]
[1641786316925,3.82566665,140.54,140.5,15.55857957]
[1641786317321,3.82566665,140.54,140.51,27.66479]
[1641786317521,3.82566665,140.55,140.51,31.09836957]
[1641786317921,3.82566665,140.54,140.52,3.43357957]
[1641786318123,3.82566665,140.54,140.52,7.43357957]
[1641786318421,3.82566665,140.53,140.52,3.43357957]
[1641786320023,12.01366665,140.53,140.52,3.43357957]
[1641786327538,12.01366665,140.53,140.51,3.43357957]
[1641786327937,3.82566665,140.52,140.51,3.43357957]
[1641786329540,82.61924339,140.56,140.51,3.43357957]
[1641786329940,3.42179913,140.55,140.51,3.43357957]
[1641786333750,3.42179913,140.55,140.51,7.43357957]
[1641786334652,3.42179913,140.55,140.52,3.43357957]
[1641786335853,3.42179913,140.55,140.51,3.43357957]
[1641786336056,5.69271653,140.54,140.51,3.43357957]
[1641786336454,5.69271653,140.54,140.52,2.44989647]
[1641786336753,5.69311663,140.53,140.49,15.10236461]
[1641786336955,9.11491576,140.53,140.49,15.10236461]
[1641786337352,5.69311663,140.53,140.47,27.66479]
[1641786337752,33.35790663,140.53,140.47,27.66479]
[1641786338454,3.76673424,140.52,140.48,4.03401115]
[1641786338652,11.77373424,140.52,140.48,4.03401115]
[1641786338853,5.69370715,140.51,140.48,4.03401115]
[1641786339253,3.76673424,140.5,140.48,4.03401115]
[1641786342259,3.76673424,140.53,140.48,8.03401115]
[1641786342461,3.76673424,140.53,140.49,4.0]
[1641786342659,3.76673424,140.53,140.5,4.0]
[1641786342860,3.76673424,140.52,140.5,4.03401115]
[1641786343261,15.08604158,140.54,140.5,4.03401115]
[1641786343462,49.2629,140.56,140.5,4.03401115]
[1641786343661,4.03291849,140.53,140.49,53.94061115]
[1641786343864,4.03291849,140.53,140.49,4.03401115]
[1641786344061,4.03291849,140.55,140.5,4.03401115]
[1641786344463,4.03291849,140.55,140.49,4.03401115]
[1641786345463,13.30891849,140.55,140.49,4.03401115]
[1641786345864,4.03291849,140.54,140.49,4.03401115]
[1641786347166,9.72525917,140.54,140.49,4.03401115]
[1641786347665,4.03291849,140.53,140.48,4.03401115]
[1641786348066,4.03291849,140.53,140.49,4.03401115]
[1641786348666,4.03291849,140.53,140.5,4.03401115]
[1641786349171,4.03291849,140.53,140.45,56.6404174]
[1641786349369,4.03291849,140.53,140.45,31.66479]
[1641786349569,4.03291849,140.53,140.46,3.6143361]
[1641786350572,4.03291849,140.53,140.46,7.6143361]
[1641786350776,4.03291849,140.53,140.46,9.3923361]
[1641786351274,4.03291849,140.53,140.47,3.6143361]
[1641786358287,8.03291849,140.53,140.47,3.6143361]
[1641786358486,5.69330703,140.52,140.47,3.6143361]
[1641786358686,12.87530703,140.52,140.47,3.6143361]
[1641786358886,4.03291849,140.51,140.47,3.6143361]
[1641786359286,4.03291849,140.51,140.46,3.6143361]
[1641786360489,4.03291849,140.51,140.46,7.6143361]
[1641786360890,4.03291849,140.51,140.47,1.778]
[1641786361490,4.03291849,140.53,140.47,9.3923361]
[1641786361689,4.03291849,140.53,140.48,4.0]
[1641786362091,4.03291849,140.53,140.48,3.6143361]
[1641786362391,4.03291849,140.54,140.48,7.6143361]
[1641786362890,4.03291849,140.54,140.49,3.6143361]
[1641786363090,4.03291849,140.54,140.49,31.2791261]
[1641786363291,4.03291849,140.55,140.49,31.2791261]
[1641786363792,4.03291849,140.55,140.5,3.6143361]
[1641786372704,9.72497372,140.55,140.5,3.6143361]
[1641786373103,4.03291849,140.54,140.5,3.6143361]
[1641786373304,12.07591849,140.54,140.5,3.6143361]
[1641786374104,4.03291849,140.53,140.5,3.6143361]
[1641786374805,4.03291849,140.54,140.5,3.6143361]
[1641786377108,4.03291849,140.54,140.51,2.44648363]
[1641786377510,4.03291849,140.54,140.52,3.6143361]
[1641786378412,4.03291849,140.54,140.5,3.6143361]
[1641786381322,4.03291849,140.54,140.51,2.44730852]
[1641786381519,4.03291849,140.54,140.51,10.87530852]
[1641786381723,4.03291849,140.54,140.52,3.6143361]
[1641786382719,4.03291849,140.55,140.52,3.6143361]
[1641786383424,4.03291849,140.56,140.52,3.6143361]
[1641786384324,2.58591162,140.55,140.52,3.6143361]
[1641786384726,4.03291849,140.54,140.52,3.6143361]
[1641786386229,4.03291849,140.56,140.52,3.6143361]
[1641786386429,19.11896007,140.56,140.52,3.6143361]
[1641786386629,19.11896007,140.56,140.5,3.6143361]
[1641786387129,6.61884111,140.55,140.5,3.6143361]
[1641786387529,4.03291849,140.54,140.5,3.6143361]
[1641786387932,6.61884111,140.54,140.51,2.45061199]
[1641786388332,4.03291849,140.53,140.52,3.6143361]
[1641786388532,6.61884111,140.53,140.52,3.6143361]
[1641786389333,4.03291849,140.53,140.52,6.06494809]
[1641786389932,4.03291849,140.55,140.52,6.06494809]
[1641786390332,4.03291849,140.55,140.53,3.6143361]
[1641786390636,2.58608214,140.54,140.53,3.6143361]
[1641786391137,6.61900063,140.54,140.51,3.6143361]
[1641786391536,4.03291849,140.53,140.51,3.6143361]
[1641786392035,4.03291849,140.53,140.5,3.6143361]
[1641786392234,4.03291849,140.53,140.52,2.45078378]